[Event "*** Titled Tuesday Blitz"]
[Site "Chess.com"]
[Date "2020.05.05"]
[Round "2"]
[White "afgano29"]
[Black "blitzking1729"]
[Result "1/2-1/2"]
[WhiteElo "2698"]
[BlackElo "2488"]
[TimeControl "180+1"]
[EndTime "10:19:24 PDT"]
[Termination "Game drawn by agreement"]

1. d4 {[%clk 0:02:59.9]} 1... d6 {[%clk 0:02:58.2]} 2. Nf3 {[%clk 0:02:59.4]}
2... g6 {[%clk 0:02:58.2]} 3. c4 {[%clk 0:02:59]} 3... Bg7 {[%clk 0:02:58.6]} 4.
Nc3 {[%clk 0:02:59.4]} 4... Bg4 {[%clk 0:02:58.5]} 5. g3 {[%clk 0:02:55.5]} 5...
Bxf3 {[%clk 0:02:53.4]} 6. exf3 {[%clk 0:02:56.4]} 6... e6 {[%clk 0:02:50.7]} 7.
f4 {[%clk 0:02:55.3]} 7... Nd7 {[%clk 0:02:49]} 8. Bg2 {[%clk 0:02:55.5]} 8...
Rb8 {[%clk 0:02:41.6]} 9. O-O {[%clk 0:02:54.7]} 9... Ne7 {[%clk 0:02:41.4]} 10.
d5 {[%clk 0:02:51.1]} 10... e5 {[%clk 0:02:40.8]} 11. fxe5 {[%clk 0:02:50.2]}
11... Nxe5 {[%clk 0:02:39.8]} 12. Qa4+ {[%clk 0:02:44.8]} 12... Qd7 {[%clk
0:02:34.9]} 13. Qb3 {[%clk 0:02:27]} 13... O-O {[%clk 0:02:30.8]} 14. Be3 {[%clk
0:02:27]} 14... b6 {[%clk 0:02:18.5]} 15. h3 {[%clk 0:02:26.8]} 15... Nf5 {[%clk
0:02:15.1]} 16. Rfe1 {[%clk 0:02:15.3]} 16... Nd3 {[%clk 0:02:11.9]} 17. Re2
{[%clk 0:02:11.3]} 17... Rfe8 {[%clk 0:02:08.2]} 18. Qc2 {[%clk 0:02:04.6]}
18... Nxe3 {[%clk 0:01:56.6]} 19. Qxd3 {[%clk 0:02:01.9]} 19... Nxg2 {[%clk
0:01:56.5]} 20. Kxg2 {[%clk 0:02:02.8]} 20... Rxe2 {[%clk 0:01:55.8]} 21. Qxe2
{[%clk 0:01:58.4]} 21... Re8 {[%clk 0:01:55.5]} 22. Qd3 {[%clk 0:01:56.2]} 22...
Bxc3 {[%clk 0:01:52]} 23. Qxc3 {[%clk 0:01:55.8]} 23... Qf5 {[%clk 0:01:51]} 24.
Re1 {[%clk 0:01:44.3]} 24... Rxe1 {[%clk 0:01:39.5]} 25. Qxe1 {[%clk 0:01:45.2]}
25... Qc2 {[%clk 0:01:39.3]} 26. Qb4 {[%clk 0:01:42.3]} 26... Qe4+ {[%clk
0:01:35.4]} 27. Kg1 {[%clk 0:01:41.5]} 27... Qb1+ {[%clk 0:01:34.7]} 28. Kg2
{[%clk 0:01:39.5]} 28... Qxa2 {[%clk 0:01:34.7]} 29. Qb5 {[%clk 0:01:38.2]}
29... Kg7 {[%clk 0:01:28.4]} 30. h4 {[%clk 0:01:36.2]} 30... h5 {[%clk
0:01:27.7]} 31. b3 {[%clk 0:01:29.2]} 31... Qc2 {[%clk 0:01:21.5]} 32. Kg1
{[%clk 0:01:27.9]} 32... a5 {[%clk 0:01:12.7]} 33. Qa4 {[%clk 0:01:27.3]} 33...
Qc3 {[%clk 0:01:08.2]} 34. Kf1 {[%clk 0:01:26.2]} 34... Qb4 {[%clk 0:01:07.7]}
35. Qa1+ {[%clk 0:00:44.7]} 35... Kg8 {[%clk 0:01:06.5]} 36. Qa4 {[%clk
0:00:36.6]} 36... Qxa4 {[%clk 0:01:02.3]} 37. bxa4 {[%clk 0:00:37.5]} 37... Kg7
{[%clk 0:01:02]} 38. Ke2 {[%clk 0:00:35.7]} 38... Kf6 {[%clk 0:01:02.1]} 39. Ke3
{[%clk 0:00:35.1]} 39... Ke5 {[%clk 0:01:02]} 40. f3 {[%clk 0:00:34.9]} 40... f6
{[%clk 0:01:02]} 41. Kd3 {[%clk 0:00:28.8]} 41... g5 {[%clk 0:01:01]} 42. Ke3
{[%clk 0:00:27.6]} 42... Kf5 {[%clk 0:01:00.8]} 43. hxg5 {[%clk 0:00:14.1]}
43... fxg5 {[%clk 0:00:57.3]} 44. Kf2 {[%clk 0:00:14]} 44... h4 {[%clk
0:00:56.9]} 45. Kg2 {[%clk 0:00:11.9]} 45... Ke5 {[%clk 0:00:55]} 46. f4+ {[%clk
0:00:11.4]} 46... Kf5 {[%clk 0:00:52.6]} 47. fxg5 {[%clk 0:00:11.2]} 47... hxg3
{[%clk 0:00:49.9]} 48. Kxg3 {[%clk 0:00:05.5]} 48... Kxg5 {[%clk 0:00:49.3]} 49.
Kf3 {[%clk 0:00:05.6]} 49... Kf5 {[%clk 0:00:49.5]} 50. Ke3 {[%clk 0:00:05.7]}
50... Ke5 {[%clk 0:00:48.5]} 51. Kd3 {[%clk 0:00:05.7]} 51... Kf4 {[%clk
0:00:47.1]} 52. Kd4 {[%clk 0:00:05]} 52... Kf3 {[%clk 0:00:46.8]} 53. Kd3 {[%clk
0:00:05.2]} 53... Kf2 {[%clk 0:00:40.1]} 54. Kd2 {[%clk 0:00:05.4]} 54... Kg3
{[%clk 0:00:39.7]} 55. Ke3 {[%clk 0:00:05.5]} 55... Kg4 {[%clk 0:00:38.5]} 56.
Ke4 {[%clk 0:00:05.7]} 56... Kg5 {[%clk 0:00:38.7]} 57. Kd3 {[%clk 0:00:04.8]}
57... Kf5 {[%clk 0:00:38.2]} 58. Ke3 {[%clk 0:00:04]} 58... Ke5 {[%clk
0:00:37.6]} 59. Kd3 {[%clk 0:00:04.3]} 59... Kf4 {[%clk 0:00:33.3]} 60. Kd4
{[%clk 0:00:04.6]} 1/2-1/2

[Event "*** Titled Tuesday Blitz"]
[Site "Chess.com"]
[Date "2020.05.05"]
[Round "2"]
[White "dukicz123"]
[Black "ketster"]
[Result "1-0"]
[WhiteElo "2491"]
[BlackElo "2269"]
[TimeControl "180+1"]
[EndTime "10:19:24 PDT"]
[Termination "dukicz123 won on time"]

1. e4 {[%clk 0:03:00.9]} 1... e5 {[%clk 0:02:58.8]} 2. Nf3 {[%clk 0:03:01]} 2...
Nc6 {[%clk 0:02:57.9]} 3. d4 {[%clk 0:03:01.6]} 3... exd4 {[%clk 0:02:57.5]} 4.
Nxd4 {[%clk 0:03:02.5]} 4... Bb4+ {[%clk 0:02:57.3]} 5. c3 {[%clk 0:03:00.9]}
5... Bc5 {[%clk 0:02:55.8]} 6. Nxc6 {[%clk 0:03:01.4]} 6... bxc6 {[%clk
0:02:54]} 7. Bd3 {[%clk 0:03:02]} 7... Qh4 {[%clk 0:02:38.5]} 8. Qe2 {[%clk
0:03:01.4]} 8... Nf6 {[%clk 0:02:37.7]} 9. Be3 {[%clk 0:03:00.6]} 9... Bxe3
{[%clk 0:02:34.4]} 10. Qxe3 {[%clk 0:03:01.5]} 10... O-O {[%clk 0:02:34]} 11.
Nd2 {[%clk 0:02:58.1]} 11... Re8 {[%clk 0:02:28.7]} 12. O-O {[%clk 0:02:57.8]}
12... Ng4 {[%clk 0:02:19.7]} 13. Qf4 {[%clk 0:02:53.4]} 13... Qh6 {[%clk
0:01:50.5]} 14. Qxh6 {[%clk 0:02:44.1]} 14... Nxh6 {[%clk 0:01:48.2]} 15. f4
{[%clk 0:02:42.2]} 15... f6 {[%clk 0:01:45.5]} 16. Nf3 {[%clk 0:02:41.6]} 16...
Rb8 {[%clk 0:01:37]} 17. b3 {[%clk 0:02:27.6]} 17... Nf7 {[%clk 0:01:34.3]} 18.
Bc4 {[%clk 0:02:22.7]} 18... Rxe4 {[%clk 0:01:28.4]} 19. Rfe1 {[%clk 0:02:05.3]}
19... d5 {[%clk 0:01:11.2]} 20. Rxe4 {[%clk 0:02:03.2]} 20... dxe4 {[%clk
0:01:10.9]} 21. Nd4 {[%clk 0:02:01.6]} 21... c5 {[%clk 0:00:58.3]} 22. Nc6
{[%clk 0:01:57.3]} 22... Ra8 {[%clk 0:00:58.5]} 23. Nd8 {[%clk 0:01:53.5]} 23...
Ba6 {[%clk 0:00:51.5]} 24. Bxf7+ {[%clk 0:01:44.3]} 24... Kf8 {[%clk 0:00:50.6]}
25. Ne6+ {[%clk 0:01:44.6]} 25... Kxf7 {[%clk 0:00:38.2]} 26. Nxc7 {[%clk
0:01:44.9]} 26... Rd8 {[%clk 0:00:36.3]} 27. Nxa6 {[%clk 0:01:44.6]} 27... Rd3
{[%clk 0:00:36.9]} 28. Nxc5 {[%clk 0:01:42.6]} 28... Rxc3 {[%clk 0:00:37.2]} 29.
Nxe4 {[%clk 0:01:42.9]} 29... Rc2 {[%clk 0:00:37.2]} 30. a4 {[%clk 0:01:30.1]}
30... Rb2 {[%clk 0:00:36.5]} 31. Nc5 {[%clk 0:01:28.6]} 31... Rc2 {[%clk
0:00:35.9]} 32. b4 {[%clk 0:01:28.8]} 32... Rc4 {[%clk 0:00:36]} 33. Rb1 {[%clk
0:01:28]} 33... Rxf4 {[%clk 0:00:36]} 34. b5 {[%clk 0:01:28]} 34... Rc4 {[%clk
0:00:35.9]} 35. Nd3 {[%clk 0:01:21.3]} 35... Rxa4 {[%clk 0:00:35.8]} 36. b6
{[%clk 0:01:17.5]} 36... axb6 {[%clk 0:00:35]} 37. Rxb6 {[%clk 0:01:18.4]} 37...
Ra1+ {[%clk 0:00:34]} 38. Kf2 {[%clk 0:01:18.7]} 38... Ra2+ {[%clk 0:00:34.6]}
39. Rb2 {[%clk 0:01:18.8]} 39... Ra3 {[%clk 0:00:34.8]} 40. Rb7+ {[%clk
0:01:17.4]} 40... Kg6 {[%clk 0:00:31.8]} 41. Nf4+ {[%clk 0:01:17.3]} 41... Kh6
{[%clk 0:00:32]} 42. Ne6 {[%clk 0:01:11.6]} 42... Ra2+ {[%clk 0:00:29]} 43. Kg3
{[%clk 0:01:09.9]} 43... Ra3+ {[%clk 0:00:29.1]} 44. Kg4 {[%clk 0:01:07.3]}
44... Ra4+ {[%clk 0:00:29.3]} 45. Kh3 {[%clk 0:01:07.7]} 45... g5 {[%clk
0:00:22]} 46. Nf8 {[%clk 0:01:02.2]} 46... g4+ {[%clk 0:00:20.6]} 47. Kh4 {[%clk
0:01:00.9]} 47... g3+ {[%clk 0:00:20.5]} 48. Kxg3 {[%clk 0:00:59.9]} 48... Kg5
{[%clk 0:00:19.9]} 49. Nxh7+ {[%clk 0:00:58.9]} 49... Kf5 {[%clk 0:00:19.3]} 50.
Rb3 {[%clk 0:00:52.7]} 50... Ra7 {[%clk 0:00:08.2]} 51. Rf3+ {[%clk 0:00:52.4]}
51... Kg6 {[%clk 0:00:06.6]} 52. Nxf6 {[%clk 0:00:52.3]} 52... Ra6 {[%clk
0:00:05.3]} 53. Ng4 {[%clk 0:00:52.6]} 53... Ra4 {[%clk 0:00:05.4]} 54. h4
{[%clk 0:00:51.2]} 54... Kh5 {[%clk 0:00:04.9]} 55. Rf5+ {[%clk 0:00:50.6]}
55... Kg6 {[%clk 0:00:04.8]} 56. Rg5+ {[%clk 0:00:50.7]} 56... Kh7 {[%clk
0:00:05.7]} 57. h5 {[%clk 0:00:50.4]} 57... Ra3+ {[%clk 0:00:06]} 58. Kh4 {[%clk
0:00:50.5]} 58... Ra2 {[%clk 0:00:06.5]} 59. g3 {[%clk 0:00:49.9]} 59... Kh8
{[%clk 0:00:05.2]} 60. Nf6 {[%clk 0:00:48.4]} 60... Rh2+ {[%clk 0:00:02.7]} 61.
Kg4 {[%clk 0:00:40.3]} 61... Rh4+ {[%clk 0:00:03.1]} 62. Kf5 {[%clk 0:00:40.2]}
62... Rf4+ {[%clk 0:00:03]} 63. Kg6 {[%clk 0:00:40.5]} 63... Rg4 {[%clk
0:00:01.7]} 64. Nxg4 {[%clk 0:00:39.4]} 64... Kg8 {[%clk 0:00:01.1]} 65. Rf5
{[%clk 0:00:37.5]} 1-0

[Event "*** Titled Tuesday Blitz"]
[Site "Chess.com"]
[Date "2020.05.05"]
[Round "2"]
[White "kungmongmanh"]
[Black "martabartel"]
[Result "1/2-1/2"]
[WhiteElo "2585"]
[BlackElo "2283"]
[TimeControl "180+1"]
[EndTime "10:19:25 PDT"]
[Termination "Game drawn by repetition"]

1. d4 {[%clk 0:03:00.9]} 1... d5 {[%clk 0:02:57.2]} 2. c4 {[%clk 0:02:59.8]}
2... e6 {[%clk 0:02:57.3]} 3. Nc3 {[%clk 0:02:59.9]} 3... a6 {[%clk 0:02:55.2]}
4. cxd5 {[%clk 0:02:58.7]} 4... exd5 {[%clk 0:02:54.6]} 5. Nf3 {[%clk 0:02:59]}
5... Nf6 {[%clk 0:02:53.2]} 6. Bg5 {[%clk 0:02:58.9]} 6... Be7 {[%clk
0:02:48.6]} 7. Qc2 {[%clk 0:02:58.7]} 7... Be6 {[%clk 0:02:43.8]} 8. e3 {[%clk
0:02:56.7]} 8... Nbd7 {[%clk 0:02:43.2]} 9. Bd3 {[%clk 0:02:56.2]} 9... h6
{[%clk 0:02:43.4]} 10. Bh4 {[%clk 0:02:55.8]} 10... g5 {[%clk 0:02:43.3]} 11.
Bg3 {[%clk 0:02:55.3]} 11... Nh5 {[%clk 0:02:43.3]} 12. Bf5 {[%clk 0:02:42.7]}
12... Bxf5 {[%clk 0:02:05]} 13. Qxf5 {[%clk 0:02:41.6]} 13... c6 {[%clk
0:02:00.2]} 14. Ne5 {[%clk 0:02:20.6]} 14... Nxe5 {[%clk 0:01:45.7]} 15. Bxe5
{[%clk 0:02:21.5]} 15... Rg8 {[%clk 0:01:30.9]} 16. Qh7 {[%clk 0:02:09.3]} 16...
Rg6 {[%clk 0:01:23]} 17. Qh8+ {[%clk 0:01:34.4]} 17... Kd7 {[%clk 0:01:21.1]}
18. Qxd8+ {[%clk 0:01:33.8]} 18... Rxd8 {[%clk 0:01:20.1]} 19. Ke2 {[%clk
0:01:20.4]} 19... Bd6 {[%clk 0:01:20]} 20. Bxd6 {[%clk 0:01:18.2]} 20... Kxd6
{[%clk 0:01:20.2]} 21. b4 {[%clk 0:01:17.5]} 21... f5 {[%clk 0:01:17.3]} 22. a4
{[%clk 0:01:15.3]} 22... Re8 {[%clk 0:01:15]} 23. Kd2 {[%clk 0:00:56.3]} 23...
f4 {[%clk 0:01:12.2]} 24. b5 {[%clk 0:00:48.7]} 24... Rge6 {[%clk 0:01:09.9]}
25. Rhe1 {[%clk 0:00:47.3]} 25... fxe3+ {[%clk 0:01:01.9]} 26. fxe3 {[%clk
0:00:45.6]} 26... Rf6 {[%clk 0:01:02]} 27. bxa6 {[%clk 0:00:40.5]} 27... bxa6
{[%clk 0:01:01.5]} 28. Rab1 {[%clk 0:00:40.2]} 28... Rf2+ {[%clk 0:00:48.9]} 29.
Re2 {[%clk 0:00:39.9]} 29... Rxe2+ {[%clk 0:00:47.9]} 30. Nxe2 {[%clk
0:00:40.8]} 30... Kc7 {[%clk 0:00:42.9]} 31. Kd3 {[%clk 0:00:28.6]} 31... Nf6
{[%clk 0:00:42.4]} 32. a5 {[%clk 0:00:24.1]} 32... Ng4 {[%clk 0:00:39]} 33. Rb6
{[%clk 0:00:20.4]} 33... Rxe3+ {[%clk 0:00:38.4]} 34. Kd2 {[%clk 0:00:20.5]}
34... Ra3 {[%clk 0:00:34.9]} 35. Rxa6 {[%clk 0:00:18.3]} 35... Ne3 {[%clk
0:00:31]} 36. Ra7+ {[%clk 0:00:15.9]} 36... Kd6 {[%clk 0:00:31]} 37. Rh7 {[%clk
0:00:15.7]} 37... Nc4+ {[%clk 0:00:22.9]} 38. Ke1 {[%clk 0:00:15.8]} 38... Rxa5
{[%clk 0:00:20.5]} 39. Rxh6+ {[%clk 0:00:16]} 39... Kc7 {[%clk 0:00:20.5]} 40.
Rg6 {[%clk 0:00:14.9]} 40... Ra1+ {[%clk 0:00:19.9]} 41. Kf2 {[%clk 0:00:14.6]}
41... Nd2 {[%clk 0:00:17.1]} 42. Ng3 {[%clk 0:00:10.4]} 42... Ra2 {[%clk
0:00:15.9]} 43. Ke3 {[%clk 0:00:07.9]} 43... Nc4+ {[%clk 0:00:15.7]} 44. Kf3
{[%clk 0:00:08.1]} 44... Ra3+ {[%clk 0:00:15.4]} 45. Kg4 {[%clk 0:00:08.1]}
45... Ra2 {[%clk 0:00:14.2]} 46. Rxg5 {[%clk 0:00:07.2]} 46... Rxg2 {[%clk
0:00:14.1]} 47. Kf3 {[%clk 0:00:07.1]} 47... Rxh2 {[%clk 0:00:13.8]} 48. Rg7+
{[%clk 0:00:06.4]} 48... Kb6 {[%clk 0:00:12.8]} 49. Nf5 {[%clk 0:00:05.6]} 49...
Rh3+ {[%clk 0:00:12.7]} 50. Ke2 {[%clk 0:00:05.3]} 50... Rh2+ {[%clk 0:00:12.3]}
51. Kd3 {[%clk 0:00:04.1]} 51... Rd2+ {[%clk 0:00:11.9]} 52. Kc3 {[%clk
0:00:04.4]} 52... Rd1 {[%clk 0:00:11.2]} 53. Rg6 {[%clk 0:00:04]} 53... Rc1+
{[%clk 0:00:10.5]} 54. Kd3 {[%clk 0:00:04.2]} 54... Rd1+ {[%clk 0:00:09.9]} 55.
Kc2 {[%clk 0:00:04.5]} 55... Rf1 {[%clk 0:00:09.6]} 56. Ne7 {[%clk 0:00:03.7]}
56... Rf2+ {[%clk 0:00:09.3]} 57. Kc3 {[%clk 0:00:03.5]} 57... Rf3+ {[%clk
0:00:09.4]} 58. Kc2 {[%clk 0:00:03.8]} 58... Rf2+ {[%clk 0:00:09.6]} 59. Kd3
{[%clk 0:00:04.2]} 59... Rf3+ {[%clk 0:00:09.7]} 60. Kc2 {[%clk 0:00:04]} 60...
Rf2+ {[%clk 0:00:10]} 1/2-1/2

[Event "*** Titled Tuesday Blitz"]
[Site "Chess.com"]
[Date "2020.05.05"]
[Round "2"]
[White "chesslh19"]
[Black "elsemenova"]
[Result "1-0"]
[WhiteElo "2161"]
[BlackElo "2380"]
[TimeControl "180+1"]
[EndTime "10:19:25 PDT"]
[Termination "chesslh19 won by resignation"]

1. e4 {[%clk 0:03:00.9]} 1... e5 {[%clk 0:03:00.1]} 2. Nf3 {[%clk 0:03:00.6]}
2... Nc6 {[%clk 0:03:00.6]} 3. Bb5 {[%clk 0:03:01.2]} 3... a6 {[%clk 0:02:59.1]}
4. Ba4 {[%clk 0:02:59]} 4... b5 {[%clk 0:02:59.4]} 5. Bb3 {[%clk 0:02:58.5]}
5... Na5 {[%clk 0:03:00.3]} 6. O-O {[%clk 0:02:51]} 6... d6 {[%clk 0:02:57.8]}
7. c3 {[%clk 0:02:44.8]} 7... Nxb3 {[%clk 0:02:56.5]} 8. axb3 {[%clk 0:02:44.7]}
8... Nf6 {[%clk 0:02:57.4]} 9. d4 {[%clk 0:02:43.4]} 9... exd4 {[%clk
0:02:53.6]} 10. Qxd4 {[%clk 0:02:15.6]} 10... Be7 {[%clk 0:02:51]} 11. Bg5
{[%clk 0:02:12.1]} 11... O-O {[%clk 0:02:43.4]} 12. c4 {[%clk 0:02:07.8]} 12...
Bb7 {[%clk 0:02:41.7]} 13. Re1 {[%clk 0:01:50.4]} 13... Re8 {[%clk 0:02:01.2]}
14. Nc3 {[%clk 0:01:39.6]} 14... b4 {[%clk 0:01:58.5]} 15. Nd5 {[%clk 0:01:18]}
15... Nxd5 {[%clk 0:01:56.3]} 16. exd5 {[%clk 0:01:18]} 16... Bxg5 {[%clk
0:01:49.6]} 17. Rxe8+ {[%clk 0:01:17.4]} 17... Qxe8 {[%clk 0:01:50.5]} 18. Nxg5
{[%clk 0:01:18]} 18... Qe5 {[%clk 0:01:37.5]} 19. Qxe5 {[%clk 0:01:09]} 19...
dxe5 {[%clk 0:01:38.4]} 20. Re1 {[%clk 0:01:03.1]} 20... a5 {[%clk 0:01:30.3]}
21. Ne4 {[%clk 0:00:59.7]} 21... Bc8 {[%clk 0:01:19.5]} 22. Nc5 {[%clk
0:00:57.9]} 22... f6 {[%clk 0:01:17.3]} 23. f3 {[%clk 0:00:53.6]} 23... Kf7
{[%clk 0:01:17.2]} 24. Kf2 {[%clk 0:00:53.5]} 24... Ke7 {[%clk 0:01:08.5]} 25.
Nd3 {[%clk 0:00:42.8]} 25... Bf5 {[%clk 0:01:03.9]} 26. Nc5 {[%clk 0:00:36.7]}
26... Kd6 {[%clk 0:01:01.2]} 27. Ne4+ {[%clk 0:00:36.7]} 27... Bxe4 {[%clk
0:00:49.4]} 28. fxe4 {[%clk 0:00:36.7]} 28... a4 {[%clk 0:00:49.6]} 29. bxa4
{[%clk 0:00:32.3]} 29... Rxa4 {[%clk 0:00:49.1]} 30. b3 {[%clk 0:00:32.5]} 30...
Ra3 {[%clk 0:00:47.5]} 31. Re3 {[%clk 0:00:31.3]} 31... g6 {[%clk 0:00:45]} 32.
h4 {[%clk 0:00:26.6]} 32... f5 {[%clk 0:00:41.5]} 33. Kf3 {[%clk 0:00:21.8]}
33... f4 {[%clk 0:00:36.3]} 34. Rd3 {[%clk 0:00:21.4]} 34... Ra2 {[%clk
0:00:32.2]} 35. Rd1 {[%clk 0:00:20.2]} 35... Rb2 {[%clk 0:00:30.9]} 36. Rd3
{[%clk 0:00:15.1]} 36... Rb1 {[%clk 0:00:31]} 37. Kg4 {[%clk 0:00:12.8]} 37...
h6 {[%clk 0:00:29.7]} 38. Kh3 {[%clk 0:00:09.9]} 38... Kc5 {[%clk 0:00:24.8]}
39. g3 {[%clk 0:00:06.2]} 39... fxg3 {[%clk 0:00:19]} 40. Kxg3 {[%clk
0:00:06.4]} 40... Rg1+ {[%clk 0:00:17.8]} 41. Kh3 {[%clk 0:00:05.7]} 41... Re1
{[%clk 0:00:17.5]} 42. Rg3 {[%clk 0:00:04.9]} 42... Rxe4 {[%clk 0:00:12]} 43.
Rxg6 {[%clk 0:00:05.2]} 43... Re3+ {[%clk 0:00:12.3]} 44. Kg2 {[%clk 0:00:05.3]}
44... Rxb3 {[%clk 0:00:09.8]} 45. Rc6+ {[%clk 0:00:05.2]} 45... Kd4 {[%clk
0:00:09.5]} 46. Rxc7 {[%clk 0:00:05.5]} 46... Rc3 {[%clk 0:00:07.6]} 47. d6
{[%clk 0:00:04.8]} 47... Rxc4 {[%clk 0:00:07]} 48. Rxc4+ {[%clk 0:00:04.2]}
48... Kxc4 {[%clk 0:00:07]} 49. d7 {[%clk 0:00:04.8]} 49... b3 {[%clk
0:00:07.7]} 50. d8=Q {[%clk 0:00:04.9]} 50... b2 {[%clk 0:00:08.6]} 51. Qb6
{[%clk 0:00:04]} 51... b1=Q {[%clk 0:00:09.5]} 52. Qxb1 {[%clk 0:00:03.5]} 1-0

[Event "*** Titled Tuesday Blitz"]
[Site "Chess.com"]
[Date "2020.05.05"]
[Round "2"]
[White "kuli4ik"]
[Black "stolencandy13"]
[Result "0-1"]
[WhiteElo "2780"]
[BlackElo "2544"]
[TimeControl "180+1"]
[EndTime "10:19:27 PDT"]
[Termination "stolencandy13 won by resignation"]

1. Nf3 {[%clk 0:03:00.9]} 1... f5 {[%clk 0:02:59.3]} 2. d3 {[%clk 0:02:58.9]}
2... Nf6 {[%clk 0:02:56.4]} 3. e4 {[%clk 0:02:59.1]} 3... d6 {[%clk 0:02:52.1]}
4. exf5 {[%clk 0:02:58.6]} 4... Bxf5 {[%clk 0:02:51.9]} 5. d4 {[%clk 0:02:59.5]}
5... Nc6 {[%clk 0:02:47.7]} 6. Bd3 {[%clk 0:02:58.9]} 6... Qd7 {[%clk
0:02:45.2]} 7. Nc3 {[%clk 0:02:49.5]} 7... Nb4 {[%clk 0:02:37.5]} 8. Bxf5 {[%clk
0:02:33.3]} 8... Qxf5 {[%clk 0:02:38.4]} 9. O-O {[%clk 0:02:33.3]} 9... Qxc2
{[%clk 0:02:34.8]} 10. Qe1 {[%clk 0:02:25.4]} 10... O-O-O {[%clk 0:02:31.2]} 11.
Bg5 {[%clk 0:02:15.1]} 11... Kb8 {[%clk 0:02:28.4]} 12. a3 {[%clk 0:02:10]}
12... Nbd5 {[%clk 0:02:19.9]} 13. Bxf6 {[%clk 0:02:05.7]} 13... Nxf6 {[%clk
0:02:19.5]} 14. Ng5 {[%clk 0:02:02.5]} 14... Rc8 {[%clk 0:02:14.2]} 15. Rc1
{[%clk 0:01:59.1]} 15... Qg6 {[%clk 0:02:13.7]} 16. Ne6 {[%clk 0:01:57.9]} 16...
Qf5 {[%clk 0:02:11.2]} 17. Qe2 {[%clk 0:01:48.4]} 17... g6 {[%clk 0:02:08.8]}
18. Rfe1 {[%clk 0:01:42.4]} 18... Bh6 {[%clk 0:02:06.8]} 19. Rcd1 {[%clk
0:01:40.7]} 19... Qh5 {[%clk 0:02:03.8]} 20. Qd3 {[%clk 0:01:16.8]} 20... Rhe8
{[%clk 0:01:56.5]} 21. h3 {[%clk 0:01:15.7]} 21... g5 {[%clk 0:01:51.7]} 22. Qf5
{[%clk 0:01:11.8]} 22... Rg8 {[%clk 0:01:45.8]} 23. f3 {[%clk 0:00:57.3]} 23...
Qg6 {[%clk 0:01:45.7]} 24. Qxg6 {[%clk 0:00:55.5]} 24... Rxg6 {[%clk 0:01:42.4]}
25. Re2 {[%clk 0:00:53.9]} 25... c6 {[%clk 0:01:25.4]} 26. g4 {[%clk 0:00:53.2]}
26... Nd7 {[%clk 0:01:21.5]} 27. Kg2 {[%clk 0:00:50.1]} 27... Nf8 {[%clk
0:01:14.9]} 28. Nxf8 {[%clk 0:00:47.8]} 28... Bxf8 {[%clk 0:01:15.8]} 29. Ne4
{[%clk 0:00:38.1]} 29... Kc7 {[%clk 0:01:09.9]} 30. Ng3 {[%clk 0:00:38.1]} 30...
Kd7 {[%clk 0:01:05.4]} 31. Rde1 {[%clk 0:00:36.7]} 31... e6 {[%clk 0:01:04]} 32.
Ne4 {[%clk 0:00:31.2]} 32... h6 {[%clk 0:00:59]} 33. Rd1 {[%clk 0:00:31.3]}
33... d5 {[%clk 0:00:55.3]} 34. Nf2 {[%clk 0:00:26.6]} 34... c5 {[%clk
0:00:55.5]} 35. Nd3 {[%clk 0:00:24.2]} 35... Rf6 {[%clk 0:00:32.7]} 36. Ne5+
{[%clk 0:00:18.2]} 36... Kd8 {[%clk 0:00:30]} 37. Rc2 {[%clk 0:00:17.2]} 37...
cxd4 {[%clk 0:00:28.2]} 38. Rxc8+ {[%clk 0:00:17.1]} 38... Kxc8 {[%clk
0:00:29.1]} 39. Rxd4 {[%clk 0:00:17.4]} 39... Bd6 {[%clk 0:00:27.8]} 40. Nd3
{[%clk 0:00:16.3]} 40... Kd7 {[%clk 0:00:27.6]} 41. Nc1 {[%clk 0:00:15.3]} 41...
Rf8 {[%clk 0:00:27.7]} 42. Rd2 {[%clk 0:00:14.6]} 42... Bf4 {[%clk 0:00:25.2]}
43. Rc2 {[%clk 0:00:14]} 43... Bxc1 {[%clk 0:00:25.8]} 44. Rxc1 {[%clk
0:00:14.3]} 44... Rc8 {[%clk 0:00:26.7]} 45. Rb1 {[%clk 0:00:14.1]} 45... Rc2+
{[%clk 0:00:26.7]} 46. Kg3 {[%clk 0:00:15]} 46... e5 {[%clk 0:00:27.2]} 47. h4
{[%clk 0:00:15.5]} 47... Kd6 {[%clk 0:00:27.2]} 48. hxg5 {[%clk 0:00:14.7]}
48... hxg5 {[%clk 0:00:28.1]} 49. b4 {[%clk 0:00:15.6]} 49... d4 {[%clk
0:00:26.7]} 50. Rh1 {[%clk 0:00:14.9]} 50... d3 {[%clk 0:00:25.3]} 51. Rh8
{[%clk 0:00:14.7]} 51... Kd7 {[%clk 0:00:23]} 52. Rh1 {[%clk 0:00:14]} 52... Re2
{[%clk 0:00:21.6]} 53. Rd1 {[%clk 0:00:13.8]} 53... d2 {[%clk 0:00:20.5]} 54. f4
{[%clk 0:00:10.6]} 54... gxf4+ {[%clk 0:00:16.8]} 55. Kf3 {[%clk 0:00:11.5]}
55... Re3+ {[%clk 0:00:15.4]} 56. Kf2 {[%clk 0:00:10.9]} 56... Rd3 {[%clk
0:00:15.7]} 57. Ke2 {[%clk 0:00:11.1]} 57... e4 {[%clk 0:00:14.6]} 58. Rh1
{[%clk 0:00:09.1]} 58... d1=Q+ {[%clk 0:00:13.6]} 59. Rxd1 {[%clk 0:00:09.2]}
59... Rxd1 {[%clk 0:00:14.5]} 60. Kxd1 {[%clk 0:00:10.1]} 60... Ke6 {[%clk
0:00:15.1]} 61. Ke2 {[%clk 0:00:10.3]} 61... Kf6 {[%clk 0:00:15.5]} 62. Kf2
{[%clk 0:00:10.8]} 62... Kg5 {[%clk 0:00:15.9]} 63. Kg2 {[%clk 0:00:11.2]} 0-1